[Event "Live Chess"]
[Site "Chess.com"]
[Date "2023.05.21"]
[Round "-"]
[White "Missedidea"]
[Black "Tiltador"]
[Result "1-0"]
[WhiteElo "1770"]
[BlackElo "874"]
[TimeControl "300"]
[EndTime "7:41:54 PDT"]
[Termination "Missedidea won by resignation"]

1. d4 {[%clk 0:04:56.1]} 1... d5 {[%clk 0:04:58.6]} 2. c4 {[%clk 0:04:54.8]}
2... dxc4 {[%clk 0:04:56.3]} 3. e3 {[%clk 0:04:53.1]} 3... b5 {[%clk 0:04:55.1]}
4. a4 {[%clk 0:04:51.1]} 4... c6 {[%clk 0:04:53.3]} 5. axb5 {[%clk 0:04:49.1]}
5... cxb5 {[%clk 0:04:51.6]} 6. Qf3 {[%clk 0:04:48]} 6... Nc6 {[%clk 0:04:49.2]}
7. Qxc6+ {[%clk 0:04:46.1]} 7... Bd7 {[%clk 0:04:48.2]} 8. Qf3 {[%clk
0:04:44.5]} 8... a6 {[%clk 0:04:47]} 9. g4 {[%clk 0:04:33.1]} 9... f6 {[%clk
0:04:44.2]} 10. Bg2 {[%clk 0:04:26.2]} 10... Ra7 {[%clk 0:04:37.3]} 11. Ne2
{[%clk 0:04:22.3]} 11... e6 {[%clk 0:04:31.7]} 12. Nbc3 {[%clk 0:04:17.2]} 12...
Ne7 {[%clk 0:04:30.3]} 13. O-O {[%clk 0:04:12.8]} 13... Ng6 {[%clk 0:04:25.9]}
14. Qg3 {[%clk 0:04:09.2]} 14... Bb4 {[%clk 0:04:19.9]} 15. f4 {[%clk
0:04:04.1]} 15... Bxc3 {[%clk 0:04:18.2]} 16. bxc3 {[%clk 0:04:02.2]} 16... O-O
{[%clk 0:04:16.6]} 17. h4 {[%clk 0:03:59.6]} 17... f5 {[%clk 0:04:11.3]} 18. h5
{[%clk 0:03:56.4]} 18... Nh8 {[%clk 0:04:03.4]} 19. g5 {[%clk 0:03:53.8]} 19...
Nf7 {[%clk 0:03:57.2]} 20. g6 {[%clk 0:03:42.2]} 20... Nh6 {[%clk 0:03:47.4]}
21. gxh7+ {[%clk 0:03:40]} 21... Kxh7 {[%clk 0:03:46.4]} 22. Kf2 {[%clk
0:03:30]} 22... Rg8 {[%clk 0:03:44.1]} 23. Bf3 {[%clk 0:03:24.8]} 23... Ng4+
{[%clk 0:03:39.2]} 24. Bxg4 {[%clk 0:03:22.6]} 24... fxg4 {[%clk 0:03:37.7]} 25.
Qxg4 {[%clk 0:03:18.5]} 25... e5 {[%clk 0:03:35.4]} 26. Qg6+ {[%clk 0:03:16.6]}
26... Kh8 {[%clk 0:03:31.3]} 27. dxe5 {[%clk 0:03:11.7]} 27... Qh4+ {[%clk
0:03:15.6]} 28. Ng3 {[%clk 0:03:09.4]} 28... Qh2+ {[%clk 0:03:05.8]} 29. Ke1
{[%clk 0:03:02.8]} 29... Bc6 {[%clk 0:02:58.6]} 30. e4 {[%clk 0:02:42.4]} 30...
Rc7 {[%clk 0:02:49.8]} 31. e6 {[%clk 0:02:27.2]} 31... Qg2 {[%clk 0:02:46.3]}
32. Rf2 {[%clk 0:02:18.2]} 32... Qg1+ {[%clk 0:02:39]} 33. Ke2 {[%clk
0:02:16.5]} 33... Bxe4 {[%clk 0:02:12.4]} 34. Qxe4 {[%clk 0:02:13.9]} 34... Qxg3
{[%clk 0:02:11.3]} 35. Be3 {[%clk 0:02:07.1]} 35... Qg4+ {[%clk 0:02:05.4]} 36.
Qf3 {[%clk 0:02:05]} 36... Qxf3+ {[%clk 0:02:01.3]} 37. Rxf3 {[%clk 0:02:00.9]}
37... Kh7 {[%clk 0:01:59.4]} 38. Bd4 {[%clk 0:01:55.1]} 38... Re7 {[%clk
0:01:57.2]} 39. f5 {[%clk 0:01:54]} 39... Rf8 {[%clk 0:01:50.1]} 40. Rg1 {[%clk
0:01:50.2]} 40... a5 {[%clk 0:01:37.1]} 41. Rg6 {[%clk 0:01:40.1]} 41... a4
{[%clk 0:01:34.1]} 42. Kd2 {[%clk 0:01:36.7]} 42... a3 {[%clk 0:01:26.3]} 43.
Rfg3 {[%clk 0:01:29.4]} 43... a2 {[%clk 0:01:23.8]} 44. Rxg7+ {[%clk 0:01:27.4]}
44... Rxg7 {[%clk 0:01:21]} 45. Rxg7+ {[%clk 0:01:25.4]} 45... Kh6 {[%clk
0:01:14.7]} 46. Ra7 {[%clk 0:01:17.4]} 46... Rxf5 {[%clk 0:01:09.7]} 47. e7
{[%clk 0:01:15.7]} 47... Rf2+ {[%clk 0:01:06.2]} 48. Bxf2 {[%clk 0:01:11.5]}
48... a1=Q {[%clk 0:01:01.1]} 49. Rxa1 {[%clk 0:01:09.2]} 1-0

[Event "Live Chess"]
[Site "Chess.com"]
[Date "2023.05.21"]
[Round "-"]
[White "FlyingChessKestrel13"]
[Black "PiotrD11"]
[Result "1/2-1/2"]
[WhiteElo "2063"]
[BlackElo "1381"]
[TimeControl "300"]
[EndTime "7:42:05 PDT"]
[Termination "Game drawn by repetition"]

1. e4 {[%clk 0:04:58.6]} 1... e5 {[%clk 0:04:59.1]} 2. Bc4 {[%clk 0:04:57.4]}
2... Nf6 {[%clk 0:04:57]} 3. d3 {[%clk 0:04:56.6]} 3... d6 {[%clk 0:04:55.7]} 4.
Nf3 {[%clk 0:04:55.8]} 4... Be7 {[%clk 0:04:54.4]} 5. O-O {[%clk 0:04:54.9]}
5... O-O {[%clk 0:04:52.8]} 6. c3 {[%clk 0:04:52.3]} 6... a6 {[%clk 0:04:52]} 7.
a4 {[%clk 0:04:50.9]} 7... Nbd7 {[%clk 0:04:49.9]} 8. Nbd2 {[%clk 0:04:49.4]}
8... Nb6 {[%clk 0:04:48.4]} 9. Ba2 {[%clk 0:04:47.6]} 9... Bd7 {[%clk
0:04:39.2]} 10. a5 {[%clk 0:04:46]} 10... Na4 {[%clk 0:04:32.9]} 11. d4 {[%clk
0:04:37.4]} 11... exd4 {[%clk 0:04:25.4]} 12. cxd4 {[%clk 0:04:36.4]} 12... c5
{[%clk 0:04:21.5]} 13. Bb3 {[%clk 0:04:31.5]} 13... b5 {[%clk 0:04:11.7]} 14.
Bxa4 {[%clk 0:04:26.9]} 14... bxa4 {[%clk 0:04:10.1]} 15. Re1 {[%clk 0:04:19.7]}
15... Qxa5 {[%clk 0:04:04.9]} 16. e5 {[%clk 0:04:15.2]} 16... dxe5 {[%clk
0:03:57.8]} 17. dxe5 {[%clk 0:04:13]} 17... Ne8 {[%clk 0:03:52.7]} 18. Nc4
{[%clk 0:04:04.7]} 18... Qc7 {[%clk 0:03:38.6]} 19. Bf4 {[%clk 0:03:53.4]} 19...
Qb7 {[%clk 0:03:17.4]} 20. Qd2 {[%clk 0:03:26.8]} 20... Bb5 {[%clk 0:03:14.1]}
21. Nd6 {[%clk 0:03:17.2]} 21... Bxd6 {[%clk 0:03:10.3]} 22. exd6 {[%clk
0:03:15.6]} 22... Nf6 {[%clk 0:02:56.8]} 23. Re7 {[%clk 0:03:06.7]} 23... Qc6
{[%clk 0:02:51]} 24. Rc7 {[%clk 0:02:56.6]} 24... Qd5 {[%clk 0:02:43.8]} 25. Rd1
{[%clk 0:02:53.2]} 25... Qxd2 {[%clk 0:02:37]} 26. Rxd2 {[%clk 0:02:52.1]} 26...
Rad8 {[%clk 0:02:34.5]} 27. h3 {[%clk 0:02:42.1]} 27... Ne4 {[%clk 0:02:33.2]}
28. Rd5 {[%clk 0:02:23.3]} 28... Bc4 {[%clk 0:02:21.1]} 29. Re5 {[%clk
0:02:13.1]} 29... Nxd6 {[%clk 0:01:59.8]} 30. Rexc5 {[%clk 0:02:08.5]} 30... Bb5
{[%clk 0:01:44.6]} 31. Bxd6 {[%clk 0:01:45.3]} 31... Rxd6 {[%clk 0:01:41.6]} 32.
Rc2 {[%clk 0:01:44.5]} 32... Rd1+ {[%clk 0:01:38.5]} 33. Kh2 {[%clk 0:01:42.3]}
33... h6 {[%clk 0:01:37]} 34. Ne5 {[%clk 0:01:35.3]} 34... Re1 {[%clk
0:01:25.9]} 35. f4 {[%clk 0:01:24.9]} 35... Re4 {[%clk 0:01:09.8]} 36. g3 {[%clk
0:01:19.1]} 36... g5 {[%clk 0:01:02.9]} 37. Ng4 {[%clk 0:00:56.4]} 37... gxf4
{[%clk 0:00:56.5]} 38. Nxh6+ {[%clk 0:00:53.6]} 38... Kg7 {[%clk 0:00:42.9]} 39.
Nf5+ {[%clk 0:00:52]} 39... Kg8 {[%clk 0:00:42]} 40. gxf4 {[%clk 0:00:46.2]}
40... Rxf4 {[%clk 0:00:31.8]} 41. Rg2+ {[%clk 0:00:38.1]} 41... Kh8 {[%clk
0:00:19.6]} 42. Rg5 {[%clk 0:00:32.8]} 42... Rf2+ {[%clk 0:00:17.1]} 43. Kg1
{[%clk 0:00:30]} 43... Rf1+ {[%clk 0:00:14.9]} 44. Kh2 {[%clk 0:00:28.8]} 44...
Rf2+ {[%clk 0:00:13.3]} 45. Kg1 {[%clk 0:00:26.8]} 45... Rf1+ {[%clk 0:00:12.6]}
46. Kh2 {[%clk 0:00:25.6]} 46... Rf2+ {[%clk 0:00:12.2]} 1/2-1/2

[Event "Live Chess"]
[Site "Chess.com"]
[Date "2023.05.21"]
[Round "-"]
[White "Daniel_Gliddon_FA"]
[Black "f4nomore"]
[Result "0-1"]
[WhiteElo "1239"]
[BlackElo "1406"]
[TimeControl "300"]
[EndTime "7:42:23 PDT"]
[Termination "f4nomore won by resignation"]

1. e4 {[%clk 0:04:57.2]} 1... d6 {[%clk 0:04:59.6]} 2. d4 {[%clk 0:04:55.4]}
2... g6 {[%clk 0:04:58.7]} 3. Nf3 {[%clk 0:04:51.7]} 3... Bg7 {[%clk 0:04:58.6]}
4. c3 {[%clk 0:04:49.1]} 4... Nf6 {[%clk 0:04:58.5]} 5. Bc4 {[%clk 0:04:40.7]}
5... O-O {[%clk 0:04:58.4]} 6. O-O {[%clk 0:04:36.7]} 6... e6 {[%clk 0:04:57.2]}
7. Qe2 {[%clk 0:04:32.5]} 7... c6 {[%clk 0:04:55.4]} 8. Bg5 {[%clk 0:04:29.3]}
8... Qe8 {[%clk 0:04:52.5]} 9. e5 {[%clk 0:04:22.3]} 9... Nd5 {[%clk 0:04:46.9]}
10. Nbd2 {[%clk 0:04:17.3]} 10... dxe5 {[%clk 0:04:44.4]} 11. dxe5 {[%clk
0:04:14.2]} 11... h6 {[%clk 0:04:42.6]} 12. Bf6 {[%clk 0:04:10.5]} 12... Nxf6
{[%clk 0:04:38.2]} 13. exf6 {[%clk 0:04:07]} 13... Bxf6 {[%clk 0:04:36.3]} 14.
Ne4 {[%clk 0:04:05.5]} 14... Bg7 {[%clk 0:04:33.7]} 15. Nd6 {[%clk 0:03:56.2]}
15... Qd7 {[%clk 0:04:31.9]} 16. Nxf7 {[%clk 0:03:43.6]} 16... Qxf7 {[%clk
0:04:28.3]} 17. Ne5 {[%clk 0:03:41.5]} 17... Qf5 {[%clk 0:04:20.8]} 18. f4
{[%clk 0:03:34.8]} 18... b5 {[%clk 0:04:10.6]} 19. Bb3 {[%clk 0:03:31.9]} 19...
a5 {[%clk 0:04:02.8]} 20. a4 {[%clk 0:03:28.7]} 20... b4 {[%clk 0:03:53.7]} 21.
cxb4 {[%clk 0:03:23.8]} 21... Ba6 {[%clk 0:03:50]} 22. b5 {[%clk 0:03:19]} 22...
cxb5 {[%clk 0:03:46.2]} 23. Nd7 {[%clk 0:02:59.4]} 23... Kh8 {[%clk 0:03:29.7]}
24. Nxf8 {[%clk 0:02:53.6]} 24... Qxf8 {[%clk 0:03:25.3]} 25. Qxe6 {[%clk
0:02:47.8]} 25... bxa4 {[%clk 0:03:21.5]} 26. Rfc1 {[%clk 0:02:31.6]} 26... Ra7
{[%clk 0:03:03.8]} 27. Bc4 {[%clk 0:02:08.6]} 27... Bxc4 {[%clk 0:03:00.7]} 28.
Rxc4 {[%clk 0:02:06.3]} 28... Re7 {[%clk 0:02:49.2]} 29. Qh3 {[%clk 0:01:54.7]}
29... Re8 {[%clk 0:02:41.6]} 30. Rcxa4 {[%clk 0:01:46.6]} 30... h5 {[%clk
0:02:28.8]} 31. Rxa5 {[%clk 0:01:43]} 31... Qb4 {[%clk 0:02:17.5]} 32. Rxh5+
{[%clk 0:01:35.2]} 32... Kg8 {[%clk 0:02:14.1]} 33. Re5 {[%clk 0:01:16.8]} 33...
Bxe5 {[%clk 0:02:04.8]} 34. fxe5 {[%clk 0:01:15.6]} 34... Qd4+ {[%clk
0:02:00.7]} 35. Kf1 {[%clk 0:01:06.4]} 35... Rf8+ {[%clk 0:01:54.4]} 36. Ke2
{[%clk 0:01:03]} 36... Qxe5+ {[%clk 0:01:52.8]} 37. Qe3 {[%clk 0:00:59.9]} 37...
Qh5+ {[%clk 0:01:39.2]} 38. Kd3 {[%clk 0:00:53]} 38... Rd8+ {[%clk 0:01:35.7]}
39. Kc4 {[%clk 0:00:48]} 39... Rc8+ {[%clk 0:01:29]} 40. Kb4 {[%clk 0:00:40.3]}
40... Nc6+ {[%clk 0:01:23.3]} 41. Kb3 {[%clk 0:00:36]} 41... Qd5+ {[%clk
0:01:16.7]} 42. Kc3 {[%clk 0:00:33.8]} 42... Ne5+ {[%clk 0:01:09.6]} 43. Kb4
{[%clk 0:00:22.5]} 43... Qc4+ {[%clk 0:01:00]} 44. Ka5 {[%clk 0:00:20.4]} 44...
Ra8+ {[%clk 0:00:56.8]} 45. Kb6 {[%clk 0:00:19.2]} 45... Rxa1 {[%clk 0:00:54.6]}
46. Qxe5 {[%clk 0:00:15.9]} 46... Qb4+ {[%clk 0:00:48.5]} 47. Kc6 {[%clk
0:00:14.7]} 47... Ra6+ {[%clk 0:00:45.9]} 48. Kd7 {[%clk 0:00:13.1]} 48... Qb7+
{[%clk 0:00:42.1]} 49. Ke8 {[%clk 0:00:10.6]} 49... Ra8+ {[%clk 0:00:39.8]} 0-1

[Event "Live Chess"]
[Site "Chess.com"]
[Date "2023.05.21"]
[Round "-"]
[White "Bob2pen"]
[Black "lateforthesky"]
[Result "1-0"]
[WhiteElo "1870"]
[BlackElo "2091"]
[TimeControl "300"]
[EndTime "7:42:30 PDT"]
[Termination "Bob2pen won by resignation"]

1. c4 {[%clk 0:04:56.7]} 1... g6 {[%clk 0:04:56.9]} 2. g3 {[%clk 0:04:55.6]}
2... Bg7 {[%clk 0:04:55.9]} 3. Bg2 {[%clk 0:04:54.6]} 3... d6 {[%clk 0:04:53.7]}
4. Nf3 {[%clk 0:04:53.3]} 4... e5 {[%clk 0:04:52.6]} 5. d3 {[%clk 0:04:52.1]}
5... Nc6 {[%clk 0:04:50.7]} 6. O-O {[%clk 0:04:50.8]} 6... Nf6 {[%clk
0:04:47.1]} 7. Nc3 {[%clk 0:04:49.6]} 7... O-O {[%clk 0:04:45.8]} 8. Rb1 {[%clk
0:04:48]} 8... a5 {[%clk 0:04:44.8]} 9. a3 {[%clk 0:04:46.8]} 9... Re8 {[%clk
0:04:41.5]} 10. b4 {[%clk 0:04:45.5]} 10... axb4 {[%clk 0:04:38.7]} 11. axb4
{[%clk 0:04:44.6]} 11... e4 {[%clk 0:04:37.9]} 12. dxe4 {[%clk 0:04:43.4]} 12...
Nxe4 {[%clk 0:04:36.4]} 13. Nxe4 {[%clk 0:04:42.4]} 13... Rxe4 {[%clk
0:04:35.5]} 14. Nd2 {[%clk 0:04:41.2]} 14... Re8 {[%clk 0:04:33.1]} 15. Bb2
{[%clk 0:04:31.6]} 15... Ne5 {[%clk 0:04:29.4]} 16. Qc2 {[%clk 0:04:20.5]} 16...
c6 {[%clk 0:04:18.4]} 17. Qc3 {[%clk 0:04:19.2]} 17... Ra2 {[%clk 0:03:45.9]}
18. Qb3 {[%clk 0:04:02.4]} 18... Rxb2 {[%clk 0:03:38.4]} 19. Rxb2 {[%clk
0:03:59.9]} 19... Be6 {[%clk 0:03:35.8]} 20. Rc2 {[%clk 0:03:39.6]} 20... Qd7
{[%clk 0:03:29.5]} 21. b5 {[%clk 0:03:28.4]} 21... Bh3 {[%clk 0:02:42.2]} 22.
Nf3 {[%clk 0:03:23.2]} 22... Bxg2 {[%clk 0:02:40.1]} 23. Kxg2 {[%clk 0:03:20.6]}
23... Ng4 {[%clk 0:02:14.9]} 24. Qd3 {[%clk 0:03:11.5]} 24... Nf6 {[%clk
0:02:04.4]} 25. Rd1 {[%clk 0:02:51.4]} 25... d5 {[%clk 0:01:48.8]} 26. cxd5
{[%clk 0:02:45.5]} 26... cxd5 {[%clk 0:01:47.2]} 27. b6 {[%clk 0:02:43.2]} 27...
Qd6 {[%clk 0:01:40.6]} 28. Qb3 {[%clk 0:02:36]} 28... h6 {[%clk 0:01:26.3]} 29.
e3 {[%clk 0:02:34.5]} 29... Re7 {[%clk 0:00:56.3]} 30. Rdc1 {[%clk 0:02:27.8]}
30... Ne4 {[%clk 0:00:51.8]} 31. Rc8+ {[%clk 0:02:24.4]} 31... Kh7 {[%clk
0:00:50.1]} 32. R8c7 {[%clk 0:02:23.2]} 32... g5 {[%clk 0:00:29.2]} 33. Rxe7
{[%clk 0:02:19.6]} 33... Qxe7 {[%clk 0:00:27.9]} 34. Qxd5 {[%clk 0:02:16.4]} 1-0

[Event "Live Chess"]
[Site "Chess.com"]
[Date "2023.05.21"]
[Round "-"]
[White "KeithArkell"]
[Black "Mikhail_Golubev"]
[Result "1/2-1/2"]
[WhiteElo "2462"]
[BlackElo "2451"]
[TimeControl "300"]
[EndTime "7:42:38 PDT"]
[Termination "Game drawn by agreement"]

1. d4 {[%clk 0:04:57.7]} 1... g6 {[%clk 0:04:57.9]} 2. Nf3 {[%clk 0:04:56.9]}
2... Bg7 {[%clk 0:04:57.1]} 3. c4 {[%clk 0:04:56.2]} 3... d6 {[%clk 0:04:56.1]}
4. Nc3 {[%clk 0:04:55.4]} 4... Nf6 {[%clk 0:04:55.2]} 5. g3 {[%clk 0:04:54.6]}
5... O-O {[%clk 0:04:54.2]} 6. Bg2 {[%clk 0:04:53.3]} 6... Nbd7 {[%clk
0:04:52.8]} 7. d5 {[%clk 0:04:52]} 7... Nb6 {[%clk 0:04:43.6]} 8. Qd3 {[%clk
0:04:43]} 8... e6 {[%clk 0:04:37.3]} 9. O-O {[%clk 0:04:37.6]} 9... exd5 {[%clk
0:04:35.5]} 10. cxd5 {[%clk 0:04:32.7]} 10... Re8 {[%clk 0:04:22.2]} 11. e4
{[%clk 0:04:30.8]} 11... Nbd7 {[%clk 0:04:11.4]} 12. Re1 {[%clk 0:04:27.8]}
12... Nc5 {[%clk 0:04:09.5]} 13. Qc2 {[%clk 0:04:26.8]} 13... Bd7 {[%clk
0:03:59.1]} 14. Bd2 {[%clk 0:04:23]} 14... a5 {[%clk 0:03:55.6]} 15. Rad1 {[%clk
0:04:17.6]} 15... a4 {[%clk 0:03:48.7]} 16. b4 {[%clk 0:04:14.4]} 16... axb3
{[%clk 0:03:47.1]} 17. axb3 {[%clk 0:04:13.8]} 17... Ng4 {[%clk 0:03:34.8]} 18.
h3 {[%clk 0:04:08]} 18... Ne5 {[%clk 0:03:33.4]} 19. Nxe5 {[%clk 0:04:07.4]}
19... Bxe5 {[%clk 0:03:31.6]} 20. b4 {[%clk 0:03:58.2]} 20... Na4 {[%clk
0:03:27.3]} 21. Ra1 {[%clk 0:03:56.8]} 21... Nb6 {[%clk 0:02:42.7]} 22. Rxa8
{[%clk 0:03:52.4]} 22... Qxa8 {[%clk 0:02:41.5]} 23. Qb3 {[%clk 0:03:42.3]}
23... Qd8 {[%clk 0:02:34.7]} 24. Be3 {[%clk 0:03:38]} 24... Qf6 {[%clk
0:02:32.1]} 25. Ne2 {[%clk 0:03:13.7]} 25... Ra8 {[%clk 0:02:23.5]} 26. Bf4
{[%clk 0:02:59.9]} 26... Bxf4 {[%clk 0:02:17.8]} 27. Nxf4 {[%clk 0:02:58.9]}
27... Ra1 {[%clk 0:02:16.6]} 28. Rxa1 {[%clk 0:02:57]} 28... Qxa1+ {[%clk
0:02:16.5]} 29. Kh2 {[%clk 0:02:56.2]} 29... Bb5 {[%clk 0:02:11.4]} 30. Bf3
{[%clk 0:02:36.6]} 30... Qf1 {[%clk 0:01:59.9]} 31. Qc2 {[%clk 0:02:34.5]} 31...
Qc4 {[%clk 0:01:58.5]} 32. Qxc4 {[%clk 0:02:33.2]} 32... Bxc4 {[%clk 0:01:56.7]}
33. Be2 {[%clk 0:02:27.1]} 33... Kg7 {[%clk 0:01:53.5]} 34. Kg2 {[%clk 0:02:23]}
34... Kf6 {[%clk 0:01:51.6]} 35. Bxc4 {[%clk 0:02:21.8]} 35... Nxc4 {[%clk
0:01:50.7]} 36. Nd3 {[%clk 0:02:20.6]} 36... Ne5 {[%clk 0:01:49.8]} 37. Nb2
{[%clk 0:02:17.2]} 37... c6 {[%clk 0:01:44.7]} 38. dxc6 {[%clk 0:02:14.6]} 38...
bxc6 {[%clk 0:01:40.7]} 39. f4 {[%clk 0:02:13.5]} 39... Nd7 {[%clk 0:01:39]} 40.
Kf3 {[%clk 0:02:09.6]} 40... Ke6 {[%clk 0:01:36.1]} 41. Ke3 {[%clk 0:02:08.1]}
41... f5 {[%clk 0:01:34.8]} 42. exf5+ {[%clk 0:02:01.6]} 42... gxf5 {[%clk
0:01:33.6]} 43. g4 {[%clk 0:02:00.9]} 43... Nf6 {[%clk 0:01:30.6]} 44. gxf5+
{[%clk 0:01:39]} 44... Kxf5 {[%clk 0:01:30.5]} 45. Nc4 {[%clk 0:01:37]} 45...
Nd5+ {[%clk 0:01:25]} 46. Kd4 {[%clk 0:01:26.9]} 46... Ke6 {[%clk 0:01:17.9]}
47. f5+ {[%clk 0:01:25.7]} 47... Kxf5 {[%clk 0:01:15.3]} 48. Nxd6+ {[%clk
0:01:24.6]} 48... Ke6 {[%clk 0:01:14.7]} 49. Ne4 {[%clk 0:01:21.5]} 49... Nxb4
{[%clk 0:01:12]} 50. Ng5+ {[%clk 0:01:20.5]} 50... Kf5 {[%clk 0:00:57.8]} 51.
Nxh7 {[%clk 0:01:19.4]} 51... Nd5 {[%clk 0:00:53.5]} 52. Nf8 {[%clk 0:01:15.5]}
52... Nf4 {[%clk 0:00:51]} 53. Kc5 {[%clk 0:01:14.3]} 1/2-1/2

[Event "Live Chess"]
[Site "Chess.com"]
[Date "2023.05.21"]
[Round "-"]
[White "ameetghasi100"]
[Black "MarkCheck"]
[Result "1-0"]
[WhiteElo "2578"]
[BlackElo "1559"]
[TimeControl "300"]
[EndTime "7:42:39 PDT"]
[Termination "ameetghasi100 won by resignation"]

1. e4 {[%clk 0:04:58.9]} 1... c5 {[%clk 0:04:58.2]} 2. Nf3 {[%clk 0:04:50.7]}
2... d6 {[%clk 0:04:57.2]} 3. Bb5+ {[%clk 0:04:48.8]} 3... Bd7 {[%clk
0:04:55.4]} 4. a4 {[%clk 0:04:48.7]} 4... a6 {[%clk 0:04:51.5]} 5. Be2 {[%clk
0:04:47.1]} 5... Nf6 {[%clk 0:04:48.7]} 6. d3 {[%clk 0:04:45.2]} 6... Nc6 {[%clk
0:04:46.1]} 7. O-O {[%clk 0:04:43.5]} 7... e5 {[%clk 0:04:42.8]} 8. Nbd2 {[%clk
0:04:39.8]} 8... g6 {[%clk 0:04:37.2]} 9. c3 {[%clk 0:04:35.1]} 9... Bg7 {[%clk
0:04:31.4]} 10. Nc4 {[%clk 0:04:31.9]} 10... Be6 {[%clk 0:04:18.5]} 11. Nfd2
{[%clk 0:04:25.3]} 11... d5 {[%clk 0:03:58.5]} 12. exd5 {[%clk 0:04:23.1]} 12...
Nxd5 {[%clk 0:03:53.3]} 13. Ne4 {[%clk 0:04:21.4]} 13... O-O {[%clk 0:03:18.5]}
14. Nxc5 {[%clk 0:04:11.2]} 14... Rb8 {[%clk 0:02:25.8]} 15. Nxe6 {[%clk
0:04:02.6]} 15... fxe6 {[%clk 0:02:25.7]} 16. Bg4 {[%clk 0:04:00.8]} 16... Qe7
{[%clk 0:01:53.8]} 17. Re1 {[%clk 0:03:58.6]} 17... Nf4 {[%clk 0:01:45.5]} 18.
g3 {[%clk 0:03:55.1]} 18... h5 {[%clk 0:01:16.5]} 19. gxf4 {[%clk 0:03:48.3]}
19... hxg4 {[%clk 0:01:15.2]} 20. Qxg4 {[%clk 0:03:47.8]} 20... Rxf4 {[%clk
0:01:06.3]} 21. Bxf4 {[%clk 0:03:44.7]} 21... exf4 {[%clk 0:01:01.9]} 22. Rxe6
{[%clk 0:03:44.6]} 1-0

[Event "Live Chess"]
[Site "Chess.com"]
[Date "2023.05.21"]
[Round "-"]
[White "chessfiction"]
[Black "garyjc"]
[Result "1-0"]
[WhiteElo "2298"]
[BlackElo "1065"]
[TimeControl "300"]
[EndTime "7:42:55 PDT"]
[Termination "chessfiction won by resignation"]

1. e4 {[%clk 0:04:58.2]} 1... c5 {[%clk 0:04:58.1]} 2. Bc4 {[%clk 0:04:57.2]}
2... a6 {[%clk 0:04:55.9]} 3. d4 {[%clk 0:04:56.4]} 3... cxd4 {[%clk 0:04:51.4]}
4. c3 {[%clk 0:04:54.8]} 4... dxc3 {[%clk 0:04:38.4]} 5. Nf3 {[%clk 0:04:52.3]}
5... Nc6 {[%clk 0:04:33.8]} 6. Nxc3 {[%clk 0:04:46]} 6... e6 {[%clk 0:04:31.1]}
7. Bf4 {[%clk 0:04:44.7]} 7... b5 {[%clk 0:04:25.9]} 8. Bb3 {[%clk 0:04:42.8]}
8... Bb7 {[%clk 0:04:23.3]} 9. O-O {[%clk 0:04:40]} 9... Be7 {[%clk 0:04:13.4]}
10. e5 {[%clk 0:04:38.6]} 10... b4 {[%clk 0:04:02.7]} 11. Ne4 {[%clk 0:04:32]}
11... Na5 {[%clk 0:03:50.1]} 12. Nd6+ {[%clk 0:04:25.5]} 12... Bxd6 {[%clk
0:03:44.1]} 13. exd6 {[%clk 0:04:25.1]} 13... Nxb3 {[%clk 0:03:33.4]} 14. axb3
{[%clk 0:04:21.7]} 14... a5 {[%clk 0:03:31.5]} 15. Ne5 {[%clk 0:04:18.6]} 15...
Nf6 {[%clk 0:03:26.9]} 16. Re1 {[%clk 0:04:13.7]} 16... O-O {[%clk 0:03:25.3]}
17. Re3 {[%clk 0:04:10.2]} 17... Nd5 {[%clk 0:03:22]} 18. Rh3 {[%clk 0:04:03.7]}
18... Nxf4 {[%clk 0:03:12.1]} 19. Rg3 {[%clk 0:03:59]} 19... f6 {[%clk 0:02:38]}
20. Qg4 {[%clk 0:03:53.1]} 20... Ng6 {[%clk 0:02:03.7]} 21. Nxg6 {[%clk
0:03:50.8]} 21... hxg6 {[%clk 0:02:02.2]} 22. Qxg6 {[%clk 0:03:50.7]} 22... Rf7
{[%clk 0:01:52]} 23. Rh3 {[%clk 0:03:49.9]} 1-0

[Event "Live Chess"]
[Site "Chess.com"]
[Date "2023.05.21"]
[Round "-"]
[White "McSlash1"]
[Black "GMHarry-youtube"]
[Result "0-1"]
[WhiteElo "2000"]
[BlackElo "2035"]
[TimeControl "300"]
[EndTime "7:43:15 PDT"]
[Termination "GMHarry-youtube won by resignation"]

1. e4 {[%clk 0:04:59.1]} 1... c5 {[%clk 0:04:59.1]} 2. Nf3 {[%clk 0:04:57.6]}
2... d6 {[%clk 0:04:49.2]} 3. d4 {[%clk 0:04:57]} 3... cxd4 {[%clk 0:04:49.1]}
4. Nxd4 {[%clk 0:04:56.3]} 4... Nf6 {[%clk 0:04:48.4]} 5. Nc3 {[%clk 0:04:55.7]}
5... g6 {[%clk 0:04:48]} 6. Be3 {[%clk 0:04:55]} 6... Bg7 {[%clk 0:04:47.6]} 7.
f3 {[%clk 0:04:54.1]} 7... O-O {[%clk 0:04:47.1]} 8. Qd2 {[%clk 0:04:53.7]} 8...
Nc6 {[%clk 0:04:46.5]} 9. Bc4 {[%clk 0:04:53.3]} 9... Nxd4 {[%clk 0:04:44.3]}
10. Bxd4 {[%clk 0:04:53.2]} 10... Be6 {[%clk 0:04:43.9]} 11. Bxe6 {[%clk
0:04:51.6]} 11... fxe6 {[%clk 0:04:43.8]} 12. O-O-O {[%clk 0:04:51]} 12... Rc8
{[%clk 0:04:41.7]} 13. Be3 {[%clk 0:04:50]} 13... a6 {[%clk 0:04:40.3]} 14. Kb1
{[%clk 0:04:49.5]} 14... b5 {[%clk 0:04:39]} 15. g4 {[%clk 0:04:48.4]} 15... e5
{[%clk 0:04:37.4]} 16. h4 {[%clk 0:04:46.4]} 16... h5 {[%clk 0:04:27.3]} 17. Bh6
{[%clk 0:04:42.9]} 17... hxg4 {[%clk 0:04:25.2]} 18. h5 {[%clk 0:04:33.7]} 18...
Nxh5 {[%clk 0:04:15.8]} 19. Rxh5 {[%clk 0:04:11.3]} 19... gxh5 {[%clk
0:04:13.1]} 20. Qg5 {[%clk 0:04:08.8]} 20... Rf7 {[%clk 0:04:11.3]} 21. Nd5
{[%clk 0:04:08.1]} 21... e6 {[%clk 0:04:01]} 22. Qxd8+ {[%clk 0:03:44.9]} 22...
Rxd8 {[%clk 0:03:58.2]} 23. Bg5 {[%clk 0:03:44.3]} 23... Rdf8 {[%clk 0:03:50.2]}
24. Ne7+ {[%clk 0:03:39]} 24... Rxe7 {[%clk 0:03:47.2]} 25. Bxe7 {[%clk
0:03:37.5]} 25... Rxf3 {[%clk 0:03:47.1]} 26. Bxd6 {[%clk 0:03:32.7]} 26... g3
{[%clk 0:03:46.3]} 27. b3 {[%clk 0:03:30]} 27... g2 {[%clk 0:03:45.6]} 28. Bc5
{[%clk 0:03:13.9]} 28... Rf1 {[%clk 0:03:34.2]} 29. Kc1 {[%clk 0:03:09.2]} 29...
Bh6+ {[%clk 0:03:32.2]} 0-1